bitfinex-derivatives/quotes_SOLF0:USTF0_20251108
["timestamp","ask_amount","ask_price","bid_price","bid_amount"]
[1762616802529,5.7658,156.15,156.09,3.22]
[1762616803329,5.7661,156.14,156.09,3.22]
[1762616803528,5.7661,156.14,156.13,0.04345494]
[1762616803723,5.7661,156.14,156.13,2.99345494]
[1762616804128,0.0432694,156.16,156.13,2.99345494]
[1762616809537,0.0432694,156.16,156.13,8.75975494]
[1762616809729,0.0432694,156.16,156.14,2.95]
[1762616812131,5.7629,156.23,156.14,4.23]
[1762616812334,5.7629,156.23,156.15,2.95]
[1762616813135,0.04547228,156.21,156.18,2.95]
[1762616815736,0.04547228,156.21,156.17,0.04090543]
[1762616816335,5.7639,156.2,156.17,0.04090543]
[1762616816735,0.04547228,156.21,156.17,0.04090543]
[1762616816939,4.70763062,156.2,156.17,0.04090543]
[1762616817135,0.04547228,156.21,156.17,0.04090543]
[1762616817136,0.04547228,156.21,156.17,2.99090543]
[1762616819438,0.04547228,156.21,156.17,8.75560543]
[1762616819638,0.04547228,156.21,156.18,2.95]
[1762616820743,0.04547228,156.21,156.19,2.95]
[1762616822944,0.04547228,156.21,156.17,3.20090543]
[1762616823937,0.04547228,156.21,156.17,0.04090543]
[1762616824141,5.80917228,156.21,156.17,0.04090543]
[1762616824334,0.04547228,156.21,156.17,0.04090543]
[1762616824744,5.7643,156.19,156.17,0.04090543]
[1762616825632,0.04547228,156.21,156.17,3.20090543]
[1762616827035,0.04547228,156.21,156.19,3.16]
[1762616830144,0.04547228,156.21,156.19,8.9239]
[1762616830344,5.7615,156.27,156.2,3.16]
[1762616830946,5.7615,156.27,156.22,3.16]
[1762616831441,0.04775906,156.26,156.24,3.16]
[1762616831644,0.04426518,156.27,156.24,3.16]
[1762616832943,0.04426518,156.27,156.26,3.16]
[1762616833347,4.69093656,156.33,156.26,3.16]
[1762616833550,99.08554998,156.37,156.27,3.16]
[1762616833742,81.98,156.37,156.27,3.16]
[1762616834047,5.7584,156.35,156.28,3.16]
[1762616834252,0.04034018,156.33,156.31,3.16]
[1762616834448,0.04034018,156.34,156.31,3.16]
[1762616835047,4.7237838,156.4,156.31,3.16]
[1762616835244,5.59014998,156.43,156.33,3.16]
[1762616835439,1.11292334,156.46,156.33,3.16]
[1762616835646,5.59014998,156.44,156.35,3.16]
[1762616836147,5.83343324,156.46,156.38,0.04725268]
[1762616836352,5.59014998,156.45,156.38,0.04725268]
[1762616836742,6.70307332,156.46,156.38,3.20725268]
[1762616837147,6.70307332,156.46,156.38,0.04725268]
[1762616837359,5.7556,156.43,156.38,0.04725268]
[1762616837944,5.7556,156.43,156.38,3.20725268]
[1762616838251,5.59014998,156.46,156.38,3.20725268]
[1762616838557,5.7549,156.45,156.38,3.20725268]
[1762616838749,5.59014998,156.46,156.38,3.20725268]
[1762616839446,14.94,156.47,156.38,3.20725268]
[1762616840147,20.6941,156.47,156.38,3.20725268]
[1762616840451,14.94,156.47,156.38,3.20725268]
[1762616841554,5.7545,156.46,156.38,3.20725268]
[1762616842458,14.94,156.47,156.38,3.20725268]
[1762616843443,5.7556,156.43,156.38,3.20725268]
[1762616844353,5.7559,156.42,156.38,3.20725268]
[1762616845349,5.59014998,156.44,156.38,0.04725268]
[1762616845857,5.7565,156.4,156.38,0.04725268]
[1762616846259,5.59014998,156.44,156.38,0.04725268]
[1762616846949,5.7567,156.4,156.38,0.04725268]
[1762616847650,5.7576,156.37,156.36,5.82]
[1762616848952,5.7592,156.33,156.28,3.16]
[1762616849945,0.04163981,156.32,156.3,3.16]
[1762616850146,0.04901732,156.33,156.3,3.16]
[1762616850346,0.04825483,156.33,156.3,3.20125388]
[1762616850947,0.04825483,156.33,156.31,3.16]
[1762616851351,5.59014998,156.43,156.33,3.2]
[1762616851755,5.7569,156.39,156.33,3.2]
[1762616851957,5.59014998,156.39,156.33,3.2]
[1762616852267,5.7577,156.37,156.29,3.2]
[1762616852457,0.04311654,156.35,156.32,3.2]
[1762616854351,11.34714998,156.39,156.32,3.2]
[1762616854549,5.757,156.39,156.33,3.2]
[1762616855565,5.757,156.39,156.35,3.2]
[1762616856064,5.7573,156.38,156.35,3.2]
[1762616856261,5.59014998,156.43,156.35,3.24241402]
[1762616856766,5.7573,156.38,156.35,3.24241402]
[1762616857663,5.7563,156.41,156.35,3.24241402]
[1762616857867,5.59014998,156.44,156.35,3.24241402]
[1762616858164,5.7562,156.41,156.35,3.24241402]
[1762616858466,5.59014998,156.44,156.35,3.24241402]
[1762616859469,5.7562,156.41,156.35,3.24241402]
[1762616860367,5.7565,156.4,156.35,3.24241402]
[1762616861862,5.756,156.42,156.35,3.24241402]
[1762616862265,5.7562,156.41,156.36,3.2]
[1762616862460,5.59014998,156.44,156.37,0.04497358]
[1762616862965,5.59014998,156.44,156.37,3.24497358]
[1762616863567,5.7566,156.4,156.37,3.24497358]
[1762616864163,5.7569,156.39,156.37,3.24497358]
[1762616865068,5.7569,156.39,156.37,0.04497358]
[1762616866367,17.10034998,156.44,156.33,3.13]
[1762616866368,2.4114009,156.38,156.33,3.13]
[1762616866559,2.4114009,156.35,156.33,3.13]
[1762616866865,5.7588,156.34,156.27,3.13]
[1762616867069,2.4114009,156.33,156.27,3.13]
[1762616867269,2.4114009,156.33,156.27,8.8911]
[1762616867471,0.04263647,156.32,156.28,3.1780781]
[1762616868562,5.7599,156.31,156.28,3.1780781]
[1762616869468,0.04263647,156.32,156.28,3.1780781]
[1762616873077,0.04263647,156.32,156.28,8.9388781]
[1762616873374,0.04263647,156.32,156.29,3.13]
[1762616875770,0.04263647,156.32,156.31,3.13]
[1762616876976,0.04263647,156.32,156.28,3.1780781]
[1762616880075,0.04263647,156.32,156.31,3.13]
[1762616880275,5.7577,156.37,156.31,3.13]
[1762616881378,5.7577,156.37,156.33,3.11]
[1762616882278,4.68135121,156.41,156.33,3.11]
[1762616882578,9.16220634,156.4,156.35,3.15352602]
[1762616882769,4.48085513,156.39,156.35,0.04352602]
[1762616882968,4.68106555,156.42,156.35,0.04352602]
[1762616883183,9.16197587,156.41,156.35,0.04352602]
[1762616883377,9.16197587,156.4,156.35,0.04352602]
[1762616883577,4.48091032,156.39,156.35,0.04352602]
[1762616883879,4.68106555,156.41,156.35,0.04352602]
[1762616884181,9.16221501,156.4,156.36,4.74]
[1762616884380,4.48114946,156.39,156.36,4.74]
[1762616884681,4.68106555,156.41,156.36,4.74]
[1762616884884,9.16063366,156.4,156.36,4.74]
[1762616885079,5.7574,156.38,156.36,4.74]
[1762616885577,4.47975887,156.37,156.36,4.74]
[1762616886678,5.7579,156.36,156.35,0.04352602]
[1762616887180,10.24172917,156.36,156.35,0.04352602]
[1762616887380,5.7579,156.36,156.35,0.04352602]
[1762616887875,10.24207969,156.36,156.35,0.04352602]
[1762616888078,5.759,156.34,156.29,3.11]
[1762616888277,4.4843884,156.35,156.29,3.11]
[1762616888472,4.68441368,156.38,156.29,3.11]
[1762616888687,5.7593,156.33,156.29,3.11]
[1762616889179,5.7594,156.32,156.29,3.15376654]
[1762616889981,5.76,156.31,156.29,0.04376654]
[1762616890189,0.04586313,156.33,156.29,3.15376654]
[1762616891281,5.7598,156.31,156.29,0.04376654]
[1762616892383,5.7594,156.32,156.29,3.15376654]
[1762616892572,0.04586313,156.33,156.29,3.15376654]
[1762616894684,0.04586313,156.33,156.31,3.11]
[1762616894881,4.68492551,156.4,156.31,3.11]
[1762616895081,5.7574,156.38,156.33,3.11]
[1762616895482,4.48530943,156.39,156.33,3.11]
[1762616895676,5.7569,156.39,156.35,3.11]
[1762616895881,4.48541726,156.41,156.35,3.15142394]
[1762616896077,4.48603607,156.43,156.38,3.11]
[1762616896285,5.7551,156.44,156.38,3.11]
[1762616896587,5.7551,156.44,156.4,3.11]
[1762616896785,5.7555,156.43,156.4,3.11]
[1762616896985,9.16737227,156.45,156.4,0.04889621]
[1762616897185,4.48283745,156.44,156.4,0.04889621]
[1762616897485,3.76915849,156.48,156.4,0.04889621]
[1762616897486,4.68453482,156.46,156.4,0.04889621]
[1762616897780,9.16618106,156.45,156.4,0.04889621]
[1762616897989,4.48164624,156.44,156.4,3.15889621]
[1762616898182,5.7548,156.45,156.4,3.15889621]
[1762616899481,4.47985884,156.5,156.41,3.11]
[1762616899681,4.68209404,156.52,156.44,3.15380605]
[1762616899882,5.7529,156.5,156.44,3.15380605]
[1762616900584,6.97259444,156.56,156.44,3.15380605]
[1762616900585,4.47620452,156.49,156.44,0.04380605]
[1762616900885,4.47620452,156.5,156.45,0.04343806]
[1762616901089,5.754,156.47,156.46,0.04839014]
[1762616901285,9.15570413,156.52,156.46,3.15839014]
[1762616901482,4.47620452,156.51,156.47,0.04797317]
[1762616901680,5.7533,156.49,156.47,0.04797317]
[1762616902185,5.7526,156.51,156.47,0.04797317]
[1762616902794,5.7526,156.51,156.47,3.15797317]
[1762616903889,5.7518,156.53,156.47,3.15797317]
[1762616904192,4.47620452,156.57,156.47,3.15797317]
[1762616904392,5.86038248,156.61,156.5,3.15121693]
[1762616904393,5.7509,156.56,156.5,3.15121693]
[1762616904594,4.47620452,156.59,156.51,0.04148881]
[1762616905292,4.47620452,156.6,156.51,0.04148881]
[1762616905791,5.7511,156.55,156.51,0.04148881]
[1762616905992,5.7511,156.55,156.51,3.15148881]
[1762616908491,5.7515,156.54,156.51,3.15148881]
[1762616908694,5.7515,156.54,156.51,3.15756935]
[1762616909191,5.7519,156.53,156.51,0.04756935]
[1762616909494,4.64466898,156.57,156.5,0.04405651]
[1762616909694,18.43216552,156.58,156.52,0.04687453]
[1762616910000,5.7517,156.53,156.52,0.04687453]
[1762616911595,5.7511,156.55,156.52,0.04687453]
[1762616911794,9.31129202,156.58,156.52,0.04687453]
[1762616912397,5.7515,156.54,156.52,0.04687453]
[1762616912592,9.31129202,156.58,156.52,0.04687453]
[1762616912802,5.7515,156.54,156.52,0.04687453]
[1762616913798,9.31129202,156.58,156.52,0.04687453]
[1762616914595,5.7509,156.55,156.52,0.04687453]
[1762616915197,5.7493,156.6,156.52,3.03687453]
[1762616915398,9.31129202,156.65,156.52,3.03687453]
[1762616915595,9.31129202,156.65,156.52,2.99]
[1762616915596,18.35962009,156.65,156.52,2.99]
[1762616915806,1.11146599,156.64,156.57,0.04478981]
[1762616916009,5.7489,156.61,156.57,0.04478981]
[1762616916208,9.31129202,156.65,156.57,0.04478981]
[1762616916505,5.7488,156.61,156.57,0.04478981]
[1762616919404,9.31129202,156.65,156.57,3.03478981]
[1762616919808,5.7485,156.62,156.57,3.03478981]
[1762616921608,5.7478,156.64,156.57,3.03478981]
[1762616921804,81.86,156.66,156.57,3.03478981]
[1762616922112,5.7481,156.63,156.57,3.03478981]
[1762616922414,3.75462968,156.65,156.57,3.03478981]
[1762616922910,5.7485,156.62,156.57,3.03478981]
[1762616923613,3.75462968,156.65,156.57,3.03478981]
[1762616924207,3.75462968,156.65,156.57,0.04478981]
[1762616924614,9.01650966,156.68,156.57,0.04478981]
[1762616924615,5.7491,156.6,156.57,0.04478981]
[1762616924802,5.7491,156.6,156.57,0.04362517]
[1762616925014,3.75462968,156.62,156.57,0.04362517]
[1762616925412,5.7492,156.6,156.57,3.08362517]
[1762616926914,9.50422968,156.59,156.57,0.04362517]
[1762616927112,3.75462968,156.59,156.56,0.04207596]
[1762616927507,5.7503,156.57,156.56,0.04207596]
[1762616927708,3.75462968,156.59,156.51,3.04]
[1762616927905,3.75462968,156.55,156.51,3.04]
[1762616928105,5.7518,156.53,156.47,3.04]
[1762616928710,5.7518,156.53,156.48,0.04897784]
[1762616928912,0.04103175,156.52,156.49,3.04]
[1762616929618,0.04103175,156.52,156.48,3.08897784]
[1762616929619,5.79323175,156.52,156.48,3.08897784]
[1762616930018,0.04103175,156.52,156.48,3.08897784]
[1762616930911,5.7507,156.56,156.51,3.04]
[1762616932016,5.7501,156.58,156.52,3.08698073]
[1762616932718,5.7504,156.57,156.52,3.08698073]
[1762616933823,5.7507,156.56,156.52,3.08698073]
[1762616934417,5.75,156.58,156.53,3.04]
[1762616935421,5.7492,156.6,156.54,3.04]
[1762616935723,5.7492,156.6,156.56,3.04]
[1762616936821,9.31034502,156.64,156.56,3.04]
[1762616937126,9.31034502,156.64,156.58,0.04205616]
[1762616937322,5.7489,156.61,156.58,0.04205616]
[1762616938326,5.7492,156.6,156.58,0.04205616]
[1762616940726,9.31034502,156.64,156.58,0.04205616]
[1762616940925,4.65670062,156.63,156.58,0.04205616]
[1762616941126,4.65670062,156.63,156.58,3.18205616]
[1762616941127,5.7485,156.62,156.58,3.18205616]
[1762616941327,4.65670062,156.63,156.58,0.04205616]
[1762616941518,9.06105786,156.62,156.58,0.04205616]
[1762616941823,5.57594231,156.68,156.58,3.18205616]
[1762616942020,4.66073362,156.67,156.61,0.04430412]
[1762616942221,4.4025409,156.68,156.62,0.04466311]
[1762616942428,7.77838876,156.72,156.62,3.18466311]
[1762616942429,4.66118525,156.67,156.62,3.18466311]
[1762616942622,9.06372615,156.68,156.63,0.0447384]
[1762616942928,5.747,156.66,156.63,0.0447384]
[1762616943724,10.41088316,156.66,156.63,0.0447384]
[1762616943924,5.747,156.66,156.63,0.0447384]
[1762616945328,5.7473,156.65,156.63,0.0447384]
[1762616947829,9.0750585,156.67,156.63,0.0447384]
[1762616948023,4.6663445,156.66,156.63,0.0447384]
[1762616948224,4.40870916,156.68,156.63,0.0447384]
[1762616948424,5.56095711,156.69,156.63,0.0447384]
[1762616948425,9.0754925,156.67,156.63,0.0447384]
[1762616948625,5.7473,156.65,156.63,0.0447384]
[1762616949132,9.07593108,156.67,156.63,3.1847384]
[1762616949332,4.40900778,156.71,156.63,3.1847384]
[1762616949531,9.07635215,156.7,156.63,3.1847384]
[1762616949735,9.07635215,156.69,156.63,3.1847384]
[1762616950026,9.07635215,156.68,156.63,3.1847384]
[1762616950227,9.07635215,156.67,156.63,3.1847384]
[1762616950433,5.7468,156.67,156.63,3.1847384]
[1762616950626,11.47728498,156.7,156.63,3.1847384]
[1762616950831,9.07572357,156.69,156.65,0.04153951]
[1762616951027,4.4083792,156.69,156.65,0.04153951]
[1762616951222,5.7466,156.67,156.65,0.04153951]
[1762616951632,2.40156141,156.68,156.65,3.18153951]
[1762616951830,8.14796141,156.68,156.65,3.18153951]
[1762616952631,5.7466,156.67,156.65,0.04153951]
[1762616953135,2.40156141,156.68,156.65,0.04153951]
[1762616953334,5.7466,156.67,156.65,0.04153951]
[1762616954135,5.7466,156.67,156.65,3.18153951]
[1762616955428,2.40156141,156.71,156.65,3.18153951]
[1762616956027,9.0719943,156.73,156.65,3.18153951]
[1762616956235,19.26368876,156.78,156.66,3.14]
[1762616956236,2.40156141,156.75,156.66,3.14]
[1762616956432,2.40156141,156.75,156.69,3.18582561]
[1762616957736,10.18248493,156.78,156.69,3.18582561]
[1762616958038,2.40156141,156.74,156.69,0.04582561]
[1762616958232,5.7452,156.71,156.69,0.04582561]
[1762616958432,2.40156141,156.72,156.68,0.04510771]
[1762616958740,2.40156141,156.7,156.68,0.04510771]
[1762616959136,9.0719943,156.76,156.68,3.18510771]
[1762616959137,2.40156141,156.72,156.68,3.18510771]
[1762616959740,9.0719943,156.76,156.68,3.18510771]
[1762616959932,2.40156141,156.71,156.68,0.04510771]
[1762616960137,11.4861,156.77,156.68,0.04510771]
[1762616960138,2.40156141,156.69,156.68,0.04510771]
[1762616960639,8.14736141,156.69,156.68,0.04510771]
[1762616961038,8.14736141,156.69,156.58,3.14]
[1762616961039,3.68156141,156.69,156.58,3.14]
[1762616961242,2.40156141,156.65,156.58,3.14]
[1762616961443,2.40156141,156.67,156.59,3.14]
[1762616962035,0.04219565,156.65,156.61,3.18026049]
[1762616962236,0.04186842,156.65,156.61,3.18328627]
[1762616962738,0.04186842,156.65,156.63,3.14]
[1762616963944,0.04186842,156.65,156.61,3.18328627]
[1762616966244,0.04186842,156.65,156.62,3.14]
[1762616967942,0.04186842,156.65,156.62,8.8883]
[1762616968246,0.04186842,156.65,156.62,3.14]
[1762616968950,0.04186842,156.65,156.64,3.14]
[1762616980954,0.04186842,156.65,156.62,2.92]
[1762616985864,10.2003485,156.71,156.65,3.2]
[1762616986066,5.7452,156.71,156.65,3.2]
[1762616986771,5.7455,156.7,156.66,3.24137985]
[1762616986966,4.72143967,156.71,156.66,0.04137985]
[1762616987157,4.45682103,156.7,156.66,0.04137985]
[1762616987357,4.72182094,156.71,156.66,3.24137985]
[1762616987664,5.7454,156.71,156.66,3.24137985]
[1762616988258,4.45769947,156.7,156.66,3.24137985]
[1762616988462,5.7455,156.7,156.66,0.04137985]
[1762616988662,11.4854,156.78,156.66,0.04137985]
[1762616988663,2.40045208,156.71,156.66,0.04137985]
[1762616988972,9.17958459,156.7,156.67,0.04466744]
[1762616989166,5.7462,156.68,156.67,0.04466744]
[1762616989366,10.20435798,156.68,156.67,0.04466744]
[1762616991075,16.20864303,156.68,156.67,0.04466744]
[1762616991465,5.747,156.66,156.62,3.2]
[1762616992367,10.47235915,156.68,156.62,3.2]
[1762616992664,0.04294509,156.66,156.62,3.24341462]
[1762616994671,5.78994509,156.66,156.62,3.24341462]
[1762616996773,2.40045208,156.75,156.66,3.2]
[1762616996971,9.22952054,156.74,156.66,3.2]
[1762616997171,9.22952054,156.74,156.65,2.40045208]
[1762616997172,5.7452,156.71,156.65,2.40045208]
[1762616997373,5.7452,156.71,156.66,3.2]
[1762616997577,2.40045208,156.75,156.66,3.2]
[1762616997772,9.2308467,156.74,156.69,0.04392251]
[1762616997974,9.2308467,156.73,156.69,0.04392251]
[1762616998174,9.2308467,156.72,156.69,0.04392251]
[1762616998374,4.50020507,156.71,156.69,0.04392251]
[1762616998574,2.40045208,156.75,156.69,0.04392251]
[1762616998778,9.23068572,156.74,156.69,0.04392251]
[1762616998973,5.7455,156.7,156.69,0.04392251]
[1762616999174,10.24563196,156.7,156.69,0.04392251]
[1762616999778,14.97533304,156.7,156.69,0.04392251]
[1762617000883,5.7467,156.67,156.64,3.2]
[1762617001583,5.7455,156.7,156.64,3.2]
[1762617001777,4.50014367,156.69,156.64,3.2]
[1762617002084,0.042745,156.68,156.65,5.46326005]
[1762617002487,5.789045,156.68,156.65,3.06280797]
[1762617002982,5.7466,156.67,156.65,0.04280797]
[1762617003184,4.50066616,156.66,156.65,0.04280797]
[1762617003383,0.042745,156.68,156.65,3.06280797]
[1762617003581,0.042745,156.68,156.65,0.04280797]
[1762617003781,4.50113558,156.67,156.65,0.04280797]
[1762617003985,0.042745,156.68,156.65,0.04280797]
[1762617004284,10.24764773,156.67,156.65,0.04280797]
[1762617004488,5.7466,156.67,156.65,0.04280797]
[1762617005891,4.50033235,156.66,156.65,0.04280797]
[1762617006086,9.22117778,156.66,156.65,0.04280797]
[1762617009386,10.50117778,156.66,156.56,6.77037565]
[1762617009591,9.22117778,156.65,156.57,3.02]
[1762617009896,4.50033235,156.64,156.57,3.02]
[1762617010088,3.75037565,156.67,156.57,3.02]
[1762617010289,0.04823439,156.64,156.6,0.04520684]
[1762617010998,5.7485,156.62,156.6,0.04520684]
[1762617012387,0.04823439,156.64,156.6,3.06520684]
[1762617012588,5.79603439,156.64,156.6,3.06520684]
[1762617012799,0.04823439,156.64,156.6,3.06520684]
[1762617012984,0.04823439,156.64,156.62,3.02]
[1762617013188,3.75037565,156.73,156.63,3.02]
[1762617013189,5.89140451,156.73,156.63,3.02]
[1762617013386,9.21554732,156.72,156.63,3.02]
[1762617013697,9.21554732,156.71,156.63,3.02]
[1762617013991,93.48138207,156.78,156.69,3.02]
[1762617013992,5.89140451,156.78,156.69,3.02]
[1762617014183,89.2748,156.88,156.72,3.06912682]
[1762617014184,0.04345773,156.75,156.72,3.06912682]
[1762617014391,0.04345773,156.75,156.72,3.06475175]
[1762617018106,1.11026034,156.83,156.75,3.02]
[1762617018107,4.48933343,156.82,156.75,3.02]
[1762617018399,4.71243827,156.85,156.75,3.02]
[1762617018595,4.48521883,156.84,156.75,3.02]
[1762617018804,4.48521883,156.83,156.75,3.02]
[1762617019101,4.71243827,156.86,156.77,0.04120609]
[1762617019297,9.19466566,156.85,156.8,0.04122801]
[1762617019496,4.48222739,156.84,156.8,0.04122801]
[1762617019695,4.48222739,156.83,156.8,0.04122801]
[1762617019899,9.19466566,156.84,156.8,0.04122801]
[1762617020099,5.7412,156.82,156.8,0.04122801]
[1762617020600,9.19466566,156.86,156.8,3.06122801]
[1762617020791,4.48222739,156.85,156.8,0.04122801]
[1762617020988,4.48222739,156.86,156.8,0.04122801]
[1762617021697,4.48222739,156.85,156.8,0.04122801]
[1762617021899,9.19466566,156.86,156.8,0.04122801]
[1762617022098,4.48222739,156.85,156.8,0.04122801]
[1762617022294,4.48222739,156.84,156.8,0.04122801]
[1762617022497,4.48222739,156.85,156.8,0.04122801]
[1762617022700,5.7413,156.82,156.8,0.04122801]
[1762617022895,4.48222739,156.83,156.71,6.77037565]
[1762617023504,3.75037565,156.81,156.71,3.02]
[1762617024007,5.743,156.77,156.74,0.04425817]
[1762617024302,0.04122801,156.78,156.74,0.04425817]
[1762617024498,5.78392801,156.78,156.74,0.04425817]
[1762617024899,0.04122801,156.78,156.74,0.04425817]
[1762617026105,5.7431,156.77,156.74,0.04425817]
[1762617030905,5.7431,156.77,156.74,3.06425817]
[1762617032209,5.7431,156.77,156.74,0.04425817]
[1762617032612,5.7434,156.76,156.74,0.04425817]
[1762617033111,3.75037565,156.75,156.74,0.04425817]
[1762617033303,3.75037565,156.75,156.6,3.09]
[1762617034006,3.75037565,156.72,156.62,3.09]
[1762617034313,0.046429,156.69,156.65,0.04406322]
[1762617034513,5.7463,156.68,156.65,0.04406322]
[1762617034709,3.79680465,156.69,156.65,0.04406322]
[1762617035802,3.75037565,156.66,156.59,3.09]
[1762617036807,0.04101111,156.64,156.61,0.04647025]
[1762617038110,5.78891111,156.64,156.61,0.04647025]
[1762617038512,0.04101111,156.64,156.61,0.04647025]
[1762617038916,0.04101111,156.64,156.61,3.13647025]
[1762617042028,0.04101111,156.64,156.61,0.04647025]
[1762617042822,5.7481,156.63,156.61,0.04647025]
[1762617046327,0.04101111,156.64,156.61,3.04647025]
[1762617047124,5.78871111,156.64,156.61,3.04647025]
[1762617048228,0.04101111,156.64,156.61,3.04647025]
[1762617051928,5.78871111,156.64,156.61,3.04647025]
[1762617054037,5.78871111,156.64,156.61,0.04647025]
[1762617054344,5.78871111,156.64,156.61,3.04647025]
[1762617057438,5.78871111,156.64,156.61,0.04647025]
[1762617057439,5.748,156.63,156.61,0.04647025]
[1762617057639,0.04101111,156.64,156.61,3.04647025]
[1762617064843,2.44305497,156.64,156.61,3.04647025]
[1762617065044,8.19065497,156.64,156.61,3.04647025]
[1762617065442,2.44305497,156.64,156.61,3.04647025]
[1762617065847,0.04101111,156.64,156.61,3.04647025]
[1762617066349,2.40204386,156.7,156.61,3.04647025]
[1762617066545,2.40204386,156.7,156.66,3.2]
[1762617066740,2.40204386,156.72,156.66,3.2]
[1762617067042,2.40204386,156.74,156.66,3.2]
[1762617067349,0.04875797,156.72,156.69,3.2]
[1762617069044,2.45080183,156.72,156.69,3.2]
[1762617069349,2.45080183,156.72,156.68,3.2489418]
[1762617069648,5.7451,156.71,156.68,3.2489418]
[1762617070953,2.45080183,156.72,156.68,3.2489418]
[1762617071949,8.19560183,156.72,156.68,3.2489418]
[1762617072158,0.04875797,156.72,156.68,3.2489418]
[1762617072650,0.04875797,156.72,156.7,3.2]
[1762617078648,0.04875797,156.72,156.68,3.2489418]
[1762617079346,0.04875797,156.72,156.68,8.9949418]
[1762617079552,0.04875797,156.72,156.69,3.2]
[1762617080955,0.04875797,156.72,156.68,3.2489418]
[1762617081156,2.40204386,156.71,156.68,0.0489418]
[1762617082054,8.14724386,156.71,156.68,3.2489418]
[1762617082255,2.40204386,156.71,156.68,3.2489418]
[1762617083263,8.14714386,156.71,156.68,3.2489418]
[1762617083960,5.7455,156.7,156.68,0.0489418]
[1762617085662,2.40204386,156.71,156.68,0.0489418]
[1762617086158,5.7455,156.7,156.68,0.0489418]
[1762617086367,2.40204386,156.69,156.58,3.2]
[1762617086658,5.7481,156.63,156.58,3.2]
[1762617086854,2.40204386,156.62,156.58,3.2]
[1762617087059,4.68939305,156.7,156.54,3.2]
[1762617087060,2.40204386,156.6,156.54,3.2]
[1762617087257,2.40204386,156.6,156.51,2.40204386]
[1762617087258,0.04544286,156.59,156.56,3.2]
[1762617088752,2.40204386,156.58,156.55,0.04246878]
[1762617088953,0.04544286,156.59,156.55,0.04246878]
[1762617089155,2.44748672,156.59,156.55,0.04246878]
[1762617090165,2.40204386,156.57,156.55,0.04246878]
[1762617091256,8.15244386,156.57,156.55,0.04246878]
[1762617091654,2.40204386,156.57,156.55,0.04246878]
[1762617091861,2.40204386,156.58,156.55,0.04246878]
[1762617092255,2.40204386,156.56,156.55,0.04246878]
[1762617092661,0.04544286,156.59,156.55,3.04246878]
[1762617092853,2.44748672,156.59,156.55,3.04246878]
[1762617094159,2.44748672,156.59,156.55,0.04246878]
[1762617094961,2.44748672,156.59,156.55,3.04246878]
[1762617097268,8.19708672,156.59,156.55,3.04246878]
[1762617097965,2.40204386,156.57,156.55,0.04246878]
[1762617098171,2.40204386,156.57,156.55,3.04246878]
[1762617098372,2.44748672,156.59,156.55,3.04246878]
[1762617102678,0.04544286,156.59,156.55,3.04246878]
[1762617103370,5.79504286,156.59,156.55,3.04246878]
[1762617103774,0.04544286,156.59,156.55,3.04246878]
[1762617110070,5.79494286,156.59,156.55,3.04246878]
[1762617110577,8.15194386,156.58,156.55,0.04246878]
[1762617113371,5.7504,156.57,156.55,0.04246878]
[1762617118778,2.40204386,156.56,156.55,0.04246878]
[1762617126482,5.7504,156.57,156.55,0.04246878]
[1762617127684,5.7504,156.57,156.51,3.11]
[1762617127685,5.7518,156.53,156.48,3.11]
[1762617128182,4.52867406,156.56,156.48,3.11]
[1762617128384,4.52867406,156.55,156.48,3.11]
[1762617128583,3.75823068,156.58,156.48,3.11]
[1762617128886,0.04106668,156.55,156.51,3.15376059]
[1762617129083,5.7514,156.54,156.51,3.15376059]
[1762617130387,0.04106668,156.55,156.51,3.15376059]
[1762617131091,5.7513,156.54,156.51,3.15376059]
[1762617132289,0.04106668,156.55,156.51,3.15376059]
[1762617132486,4.54314181,156.54,156.51,3.15376059]
[1762617132794,5.7513,156.54,156.51,3.15376059]
[1762617133288,0.04106668,156.55,156.51,0.04376059]
[1762617133289,5.7517,156.53,156.51,0.04376059]
[1762617134196,0.04106668,156.55,156.51,4.43376059]
[1762617134495,0.04106668,156.55,156.52,3.11]
[1762617134695,0.04106668,156.55,156.53,3.11]
[1762617135799,0.04106668,156.55,156.53,8.8616]
[1762617135995,0.04106668,156.55,156.54,3.11]
[1762617136196,3.75823068,156.64,156.54,3.11]
[1762617136498,3.75823068,156.64,156.55,3.11]
[1762617136897,4.7224516,156.63,156.55,3.11]
[1762617137201,5.7496,156.59,156.57,3.15124456]